bitfinex/quotes_ETHUSD_20250508
["timestamp","ask_amount","ask_price","bid_price","bid_amount"]
[1746716072460,8.00495857,1998.1,1997.6,5.00595998]
[1746716072663,5.00536491,1997.9,1997.4,5.0063454]
[1746716072845,5.496805,1998.0,1997.2,5.00682098]
[1746716073035,5.00638887,1997.5,1997.1,0.756]
[1746716073232,5.00622726,1997.6,1997.1,5.76315801]
[1746716073459,5.0064292,1997.5,1997.1,0.756]
[1746716073864,8.00527169,1997.9,1997.1,5.76326033]
[1746716074033,5.00626677,1997.5,1997.1,5.76326033]
[1746716074229,5.00613574,1997.6,1997.1,0.756]
[1746716074537,5.00639376,1997.5,1997.1,5.76325331]
[1746716074746,5.00667276,1997.4,1996.9,5.00767104]
[1746716074949,9.292,1997.7,1997.2,5.00693201]
[1746716075145,9.292,1997.7,1996.9,5.00766026]
[1746716075146,5.00677749,1997.3,1996.9,5.00766026]
[1746716075349,9.292,1997.7,1996.9,5.00776203]
[1746716075551,14.29790182,1997.7,1997.3,5.00675228]
[1746716075936,14.12384673,1997.7,1997.2,5.00689264]
[1746716076136,14.12384673,1997.7,1997.3,5.00673966]
[1746716076457,5.0060072,1997.6,1996.8,5.77710802]
[1746716076631,5.00689476,1997.3,1996.9,5.00772499]
[1746716076834,3.0,1997.5,1996.8,0.7692]
[1746716076835,5.00718787,1997.2,1996.8,0.7692]
[1746716077046,5.00742784,1997.1,1996.8,0.7692]
[1746716077268,5.00719527,1997.2,1996.7,5.00812411]
[1746716077470,5.00741046,1997.1,1996.7,5.00812411]
[1746716077671,5.00767365,1997.0,1996.5,5.0085623]
[1746716077835,5.00770655,1997.0,1996.6,5.00843755]
[1746716078377,5.00815404,1996.8,1996.4,5.00886942]
[1746716078545,5.00734853,1997.1,1996.5,5.00875406]
[1746716078746,8.00701777,1997.2,1996.8,5.00789494]
[1746716078962,3.4918,1997.6,1996.4,5.05896883]
[1746716079278,3.4918,1997.6,1996.9,5.00756928]
[1746716079279,5.00664647,1997.4,1996.9,5.00756928]
[1746716079465,5.00625782,1997.5,1996.4,5.00900405]
[1746716079790,5.00776575,1996.9,1996.3,0.777]
[1746716079993,5.00776575,1996.9,1996.4,5.00898553]
[1746716079994,5.00788105,1996.9,1996.4,5.00898553]
[1746716080293,5.00830718,1996.7,1996.3,5.78610594]
[1746716080586,5.00814117,1996.8,1996.3,0.777]
[1746716080786,5.00862031,1996.6,1996.3,0.777]
[1746716080996,9.7848,1997.0,1996.2,0.4387049]
[1746716081295,14.30063091,1997.0,1996.6,5.00833565]
[1746716081587,3.0,1997.1,1996.4,5.00901622]
[1746716081794,5.00805439,1996.8,1996.4,5.00891566]
[1746716081977,5.0079105,1996.9,1996.4,5.00881547]
[1746716082180,5.0079105,1996.9,1996.4,5.0088516]
[1746716082346,5.00798239,1996.9,1996.5,5.00870527]
[1746716083002,8.00735993,1997.1,1996.3,5.00926714]
[1746716083298,3.0,1997.1,1996.6,5.00841601]
[1746716083595,3.0,1997.1,1996.3,0.54980604]
[1746716083755,5.00805753,1996.8,1996.3,5.00915435]
[1746716084095,5.0079004,1996.9,1996.3,5.00913965]
[1746716084404,8.00726815,1997.1,1996.4,5.00876737]
[1746716084563,8.00726815,1997.1,1996.2,0.4387049]
[1746716084764,5.008351,1996.7,1996.2,5.44811583]
[1746716084972,5.00851944,1996.6,1996.2,5.44806637]
[1746716085292,0.27956677,1997.0,1996.3,5.00923329]
[1746716085592,5.00838664,1996.7,1996.3,5.0091555]
[1746716085966,5.00813255,1996.8,1996.2,5.44811302]
[1746716086291,5.28744363,1996.9,1996.5,5.00862375]
[1746716086490,5.28744363,1996.9,1996.3,5.00912406]
[1746716086697,14.0186544,1997.0,1996.6,5.0083939]
[1746716086902,8.00677154,1997.3,1996.6,0.8296]
[1746716086903,5.00696149,1997.3,1996.6,0.8296]
[1746716087111,18.5338,1997.7,1997.0,5.00742716]
[1746716087393,5.006621,1997.4,1997.0,5.00735725]
[1746716087574,18.5338,1997.7,1997.0,5.0074902]
[1746716087776,5.0060072,1997.6,1996.9,5.00764715]
[1746716088001,5.0060072,1997.6,1996.8,5.0078462]
[1746716088163,5.00662962,1997.4,1996.9,5.00756685]
[1746716088352,5.00687923,1997.3,1996.9,5.0077251]
[1746716088550,5.00753157,1997.0,1996.6,5.83797862]
[1746716088756,5.00770672,1997.0,1996.6,0.8296]
[1746716088968,5.00817062,1996.8,1996.3,5.6439278]
[1746716089193,5.00836332,1996.7,1996.3,5.6439278]
[1746716089393,5.49943616,1997.0,1996.6,5.00841121]
[1746716089554,5.49943616,1997.0,1996.6,5.00849263]
[1746716089753,5.00779033,1996.9,1996.5,5.00857226]
[1746716089987,5.00779033,1996.9,1996.4,5.00889471]
[1746716089988,5.00741348,1997.1,1996.7,5.00822173]
[1746716090191,5.00726052,1997.1,1996.3,0.6348]
[1746716090522,5.00617168,1997.6,1996.6,5.00851447]
[1746716090791,5.64722866,1997.9,1996.9,5.00756815]
[1746716090792,5.0066102,1997.4,1996.9,5.00756815]
[1746716091089,5.00653614,1997.4,1997.0,5.00736136]
[1746716091265,0.6418,1997.9,1996.8,0.05007378]
[1746716091587,5.0056605,1997.8,1997.4,5.00640209]
[1746716091886,5.0056605,1997.8,1997.3,5.00662187]
[1746716091887,5.00577245,1997.7,1997.3,5.00662187]
[1746716092050,0.6418,1997.9,1997.2,0.7673]
[1746716092253,5.00634758,1997.5,1996.9,0.7673]
[1746716092490,5.0060072,1997.6,1996.9,0.7673]
[1746716092661,3.0,1997.5,1996.7,5.00808069]
[1746716092867,3.0,1997.5,1996.8,5.00780912]
[1746716093065,5.00700234,1997.3,1996.7,5.00825551]
[1746716093265,5.00700981,1997.2,1996.3,0.8233]
[1746716093592,5.00700981,1997.2,1996.4,5.00888587]
[1746716093593,5.00811616,1996.8,1996.4,5.00888587]
[1746716093891,5.00737258,1997.1,1996.7,5.00816404]
[1746716094100,5.0075262,1997.0,1996.6,5.00837672]
[1746716094310,5.0081067,1996.8,1996.3,5.83253713]
[1746716094486,5.0081067,1996.8,1996.4,5.00889994]
[1746716094692,5.00753046,1997.0,1996.6,5.00839558]
[1746716094992,5.00684975,1997.3,1996.8,5.00781485]
[1746716095190,5.00701,1997.2,1996.6,5.00851447]
[1746716095382,0.27975533,1997.1,1996.8,5.00788826]
[1746716095584,0.27975533,1997.1,1996.9,5.00773911]
[1746716096094,5.00676375,1997.3,1996.8,5.00787577]
[1746716096295,18.047,1997.5,1996.8,1.32768758]
[1746716096494,9.012,1997.6,1997.3,5.00666427]
[1746716096986,9.012,1997.6,1997.3,5.00672957]
[1746716097198,9.012,1997.6,1997.3,5.00662832]
[1746716097396,9.012,1997.6,1997.1,5.00725791]
[1746716097705,14.0180661,1997.6,1997.2,5.00687584]
[1746716097880,9.012,1997.6,1997.3,5.00662726]
[1746716098082,9.012,1997.6,1997.4,5.0063082]
[1746716098286,9.012,1997.6,1997.5,5.00625782]
[1746716098488,9.012,1997.6,1997.4,5.0063082]
[1746716098489,9.012,1997.6,1997.3,5.00661013]
[1746716098685,9.012,1997.6,1997.4,5.00648299]
[1746716098883,9.012,1997.6,1997.4,5.00637527]
[1746716099303,5.00519203,1998.0,1997.6,5.00584791]
[1746716099510,5.00536388,1997.9,1997.1,5.00726052]
[1746716099813,5.00539755,1997.9,1997.5,5.0061497]
[1746716100107,5.00509572,1998.0,1997.5,5.0060905]
[1746716100310,5.00500512,1998.0,1997.6,5.00588251]
[1746716100529,5.00570253,1997.8,1997.0,5.83710113]
[1746716100687,5.00541268,1997.9,1997.5,5.00617274]
[1746716101009,5.00541338,1997.9,1997.4,5.0063151]
[1746716101206,5.00489338,1998.1,1997.4,5.00640586]
[1746716101410,5.00489338,1998.1,1997.7,5.00566981]
[1746716101799,5.00502078,1998.0,1997.6,5.00599766]
[1746716101987,5.00489322,1998.1,1997.7,5.00566398]
[1746716102311,3.32377537,1998.2,1997.7,5.0055895]
[1746716102508,8.32839725,1998.2,1997.4,5.00650846]
[1746716102808,5.00486853,1998.1,1997.7,5.00565038]
[1746716102980,5.00477118,1998.1,1997.7,5.00574623]
[1746716103180,5.00477118,1998.1,1997.6,5.00584596]
[1746716103378,5.00477118,1998.1,1997.4,5.0064999]
[1746716103379,8.32843708,1998.2,1997.8,5.00549382]
[1746716103584,3.32377537,1998.2,1998.0,5.0048443]
[1746716104008,9.3748,1998.5,1998.1,5.00475451]
[1746716104182,14.37875191,1998.5,1998.1,5.00471078]
[1746716104375,9.3748,1998.5,1997.8,0.05005125]
[1746716104577,9.3748,1998.5,1997.8,0.50557927]
[1746716104777,5.00464302,1998.2,1997.4,5.00650846]
[1746716104983,8.64558881,1998.5,1997.7,5.00565325]
[1746716105178,3.6418,1998.5,1997.7,5.00557163]
[1746716105393,5.00476783,1998.1,1997.7,5.00559291]
[1746716105603,3.6418,1998.5,1997.3,0.7956]
[1746716105604,5.00539003,1997.9,1997.3,0.7956]
[1746716105800,5.00650846,1997.4,1997.0,5.0073949]
[1746716106015,3.0,1997.8,1997.1,5.00704015]
[1746716106200,8.00561976,1997.8,1997.4,5.00636548]
[1746716106526,5.0052567,1997.9,1997.5,5.00613115]
[1746716106902,13.73715443,1998.0,1997.6,5.00599635]
[1746716107200,5.00537742,1997.9,1996.9,0.8087]
[1746716107530,0.6418,1997.6,1996.9,0.8087]
[1746716107826,5.00625782,1997.5,1997.0,5.00747531]
[1746716107994,3.6418,1997.6,1996.9,0.8087]
[1746716108191,5.00672837,1997.4,1996.9,5.81628697]
[1746716108391,5.00671142,1997.4,1996.9,0.8087]
[1746716108597,5.00671142,1997.4,1996.9,5.76626977]
[1746716108792,5.00671142,1997.4,1997.0,5.00740742]
[1746716109034,5.00671142,1997.4,1997.0,5.00746172]
[1746716109533,5.00720632,1997.2,1996.9,0.7587]
[1746716109828,5.00787422,1996.9,1996.5,5.00871897]
[1746716110003,5.00790839,1996.9,1996.4,5.00887135]
[1746716110205,5.00790839,1996.9,1996.3,5.00915055]
[1746716110405,3.6918,1997.0,1996.2,5.44811387]
[1746716110732,5.00847933,1996.7,1996.2,5.44809458]
[1746716110931,5.00847933,1996.7,1996.3,5.00924769]
[1746716111228,5.00847933,1996.7,1996.2,5.44800707]
[1746716111425,5.00801282,1996.8,1996.2,0.4387049]
[1746716111632,5.00873827,1996.6,1996.2,0.4387049]
[1746716111799,5.00873827,1996.6,1996.2,5.4482191]
[1746716112329,5.00902663,1996.4,1996.2,0.4387049]
[1746716112534,5.00926714,1996.3,1996.2,0.4387049]
[1746716112908,8.00926714,1996.3,1996.2,0.4387049]
[1746716113134,8.00926714,1996.3,1995.7,3.3398108]
[1746716113135,8.01052209,1995.8,1995.7,0.57913841]
[1746716113460,35.21332209,1995.8,1995.7,0.57913841]
[1746716113824,35.76332209,1995.8,1995.7,0.57913841]
[1746716114045,41.45631333,1995.8,1995.7,0.57913841]
[1746716114358,41.45631333,1995.8,1994.7,5.01318546]
[1746716114359,5.0122287,1995.2,1994.7,5.01318546]
[1746716114557,8.468,1995.2,1994.6,0.7509]
[1746716114727,0.6918,1995.1,1994.3,4.32063677]
[1746716114932,13.48012119,1995.2,1994.7,5.01327787]
[1746716115256,8.468,1995.2,1994.6,5.0133759]
[1746716115431,5.01275662,1995.0,1994.5,5.01367422]
[1746716115654,5.01275662,1995.0,1994.6,5.013515]
[1746716115978,5.01263681,1995.0,1994.3,4.32063677]
[1746716116153,5.01263681,1995.0,1994.6,5.01349601]
[1746716116486,5.01295201,1994.9,1994.3,9.33482361]
[1746716116682,5.01314031,1994.8,1994.3,9.33482361]
[1746716116851,5.01304752,1994.8,1994.4,5.0139985]
[1746716117050,13.48104752,1994.8,1994.4,5.0139985]
[1746716117370,8.468,1994.8,1994.5,5.01375157]
[1746716117545,8.468,1994.8,1994.3,4.32063677]
[1746716117948,5.0132852,1994.7,1994.3,4.32063677]
[1746716118265,5.01383443,1994.5,1994.3,4.32063677]
[1746716118470,9.1598,1994.8,1994.3,4.32063677]
[1746716118471,5.01365373,1994.6,1994.3,4.32063677]
[1746716118666,5.70492903,1994.8,1994.3,4.32063677]
[1746716118886,5.01332554,1994.7,1994.3,4.32063677]
[1746716119296,0.6918,1994.8,1994.4,5.01380557]
[1746716120044,5.7048556,1994.8,1994.4,5.01380557]
[1746716120246,8.471,1994.9,1994.2,0.4387049]
[1746716120482,8.471,1994.9,1994.6,5.01351887]
[1746716120667,8.473,1994.9,1994.2,0.4387049]
[1746716121180,8.473,1994.9,1994.4,0.8303]
[1746716121362,5.01325474,1994.8,1994.4,0.8303]
[1746716121564,13.48587974,1994.9,1994.5,5.01375756]
[1746716121760,5.01315823,1994.8,1994.3,5.01410289]
[1746716122084,8.473,1994.9,1994.5,5.01356327]
[1746716122386,8.473,1994.9,1994.5,5.01363731]
[1746716122598,8.473,1994.9,1994.2,0.4387049]
[1746716122943,5.01332309,1994.7,1994.2,0.4387049]
[1746716123149,0.6918,1994.7,1994.2,0.4387049]
[1746716123576,5.01429072,1994.3,1994.2,0.4387049]
[1746716123790,16.22029072,1994.3,1994.2,0.4387049]
[1746716123993,16.91209072,1994.3,1994.2,0.4387049]
[1746716124293,17.83812783,1994.3,1994.2,0.4387049]
[1746716124648,5.01701792,1993.3,1992.8,5.01795804]
[1746716124845,11.8978,1993.5,1992.4,0.7905]
[1746716125047,5.01665156,1993.4,1992.9,5.0176782]
[1746716125280,5.01709666,1993.2,1992.7,5.01812339]
[1746716125490,3.55,1993.4,1992.2,1.2422049]
[1746716125696,5.01767013,1993.0,1992.5,5.01873568]
[1746716125990,13.9157559,1992.9,1992.2,0.4387049]
[1746716126192,13.9157559,1992.9,1992.4,5.01895761]
[1746716126193,13.91572076,1992.9,1992.4,5.01895761]
[1746716126498,13.91572076,1992.9,1992.2,0.4387049]
[1746716126499,8.206,1992.9,1992.3,0.7776]
[1746716126668,5.01758082,1993.0,1992.5,5.01857633]
[1746716126991,8.209,1992.9,1992.5,5.01857633]
[1746716127359,13.22695264,1992.9,1992.4,5.01898951]
[1746716127584,8.209,1992.9,1992.7,5.01826658]
[1746716127751,8.209,1992.9,1992.4,5.01907247]
[1746716128092,8.209,1992.9,1992.4,5.59804647]
[1746716128319,8.209,1992.9,1992.8,5.01806503]
[1746716128523,8.209,1992.9,1992.3,0.7776]
[1746716128675,8.209,1992.9,1992.2,5.45809042]
[1746716128676,13.22699041,1992.9,1992.2,5.45809042]
[1746716128875,13.22699041,1992.9,1992.3,5.01920549]
[1746716129117,13.22687426,1992.9,1992.4,5.01883102]
[1746716129321,8.209,1992.9,1992.2,0.4387049]
[1746716129527,5.0192415,1992.4,1992.2,0.4387049]
[1746716129683,4.2418,1992.7,1992.2,0.4387049]
[1746716129684,5.01900557,1992.5,1992.2,0.4387049]
[1746716129880,5.01907332,1992.4,1992.2,0.4387049]
[1746716130075,16.78032439,1992.3,1992.2,0.4387049]
[1746716130321,17.47212439,1992.3,1992.2,0.4387049]
[1746716130504,16.92212439,1992.3,1992.2,0.4387049]
[1746716130818,17.47212439,1992.3,1992.2,0.4387049]
[1746716131123,17.85331888,1992.3,1992.2,0.4387049]
[1746716131303,5.0211361,1991.6,1991.2,5.02195377]
[1746716131492,8.211,1991.6,1991.3,5.02184085]
[1746716131691,8.211,1991.6,1991.1,0.8035]
[1746716131692,5.02144029,1991.5,1990.9,7.80570576]
[1746716131909,3.55,1991.4,1990.9,7.80570576]
[1746716132108,5.02224919,1991.2,1990.9,7.80570576]
[1746716132298,5.02184502,1991.3,1990.9,7.80570576]
[1746716132501,0.6918,1991.4,1990.9,7.80570576]
[1746716132809,18.074,1991.8,1991.4,5.0214485]
[1746716133011,0.07854664,1992.3,1991.6,5.78972474]
[1746716133208,8.9068,1992.4,1991.6,5.78969476]
[1746716133425,5.02024905,1992.0,1991.5,5.02125911]
[1746716133603,5.02105008,1991.7,1991.1,5.02212233]
[1746716133798,5.02178817,1991.4,1990.9,8.57450576]
[1746716134028,8.215,1991.6,1990.9,7.80570576]
[1746716134029,5.02248647,1991.1,1990.9,7.80570576]
[1746716134208,5.0220216,1991.3,1990.9,7.80570576]
[1746716134429,3.0,1991.5,1991.0,5.02247072]
[1746716134595,8.02141191,1991.5,1990.9,12.82843442]
[1746716134798,3.0,1991.5,1991.0,5.02257168]
[1746716135001,3.0,1991.5,1990.9,7.80570576]
[1746716135241,3.0,1991.5,1991.0,5.02240662]
[1746716135401,3.0,1991.5,1991.0,5.02252157]
[1746716135601,3.0,1991.5,1990.9,7.80570576]
[1746716135935,8.60036431,1991.6,1990.9,7.80570576]
[1746716135936,0.6918,1991.3,1990.9,7.80570576]
[1746716136420,8.217,1991.4,1991.0,5.02246656]
[1746716136627,8.217,1991.4,1991.1,5.0222172]
[1746716136821,8.217,1991.4,1991.3,5.02184502]
[1746716137024,8.9088,1991.9,1991.2,5.02209722]
[1746716137221,8.217,1991.9,1991.7,5.02072849]
[1746716137533,8.217,1991.9,1991.4,5.02159284]
[1746716137534,13.23584151,1992.5,1992.0,5.01993062]
[1746716137708,8.217,1992.5,1991.7,5.0208353]
[1746716138039,8.217,1992.5,1991.5,0.8064]
[1746716138223,0.6918,1992.7,1992.1,5.01971164]
[1746716138408,0.6918,1992.7,1991.9,5.02033234]
[1746716138610,5.71024634,1992.7,1991.9,5.02033234]
[1746716138811,5.71013583,1992.7,1992.3,5.0192335]
[1746716139016,5.71013583,1992.7,1992.2,5.01941741]
[1746716139017,0.6918,1992.7,1992.2,5.01941741]
[1746716139217,13.92828438,1992.7,1992.2,5.01941741]
[1746716139425,5.01893691,1992.5,1992.1,5.01975241]
[1746716139617,3.0,1992.6,1991.6,5.02108857]
[1746716139813,8.0192405,1992.4,1991.9,5.0201707]
[1746716140142,4.2418,1992.2,1991.5,5.79029242]
[1746716140448,4.2418,1992.2,1991.1,5.02231126]
[1746716140449,3.0,1992.0,1991.7,5.02069052]
[1746716140648,0.6918,1992.2,1991.2,0.7795]
[1746716140833,13.23791039,1992.1,1991.5,5.02130771]
[1746716141006,8.218,1992.1,1991.3,0.05021487]
[1746716141206,13.23802011,1992.1,1991.2,0.7795]
[1746716141528,5.0209456,1991.7,1991.2,0.7795]
[1746716141846,0.6918,1992.2,1991.3,0.05022309]
[1746716142020,8.711489,1992.2,1991.7,5.02070422]
[1746716142217,5.02022588,1992.0,1991.6,5.02104136]
[1746716142527,0.55,1991.8,1991.0,5.02249984]
[1746716142701,8.219,1991.9,1991.4,5.02156739]
[1746716142903,13.2395463,1991.9,1991.2,0.05021516]
[1746716143175,13.2395463,1991.9,1991.4,5.02156092]
[1746716143176,5.02074434,1991.8,1991.4,5.02156092]
[1746716143313,0.6918,1991.6,1990.9,5.14113677]
[1746716143502,3.0,1991.5,1990.9,5.14113677]
[1746716143707,5.02169103,1991.4,1991.0,5.0226017]
[1746716143903,5.02149746,1991.5,1991.1,5.02234076]
[1746716144349,3.0,1991.5,1991.1,5.02234076]
[1746716144652,8.02143489,1991.5,1991.1,5.0221785]
[1746716144810,8.02143489,1991.5,1991.0,5.02245077]
[1746716145010,3.0,1991.8,1991.1,5.02234945]
[1746716145214,5.02125308,1991.6,1991.0,5.02245399]
[1746716145565,5.02122741,1991.6,1991.1,5.02211457]
[1746716145767,5.02134827,1991.5,1991.0,10.04495245]
[1746716146050,3.0,1991.6,1990.9,5.14113677]
[1746716146266,5.02162318,1991.4,1990.9,4.32063677]
[1746716146421,5.02171912,1991.4,1990.9,9.3434903]
[1746716146752,5.02161912,1991.4,1990.9,9.3433916]
[1746716146973,3.0,1991.6,1990.9,4.32063677]
[1746716147179,5.02164382,1991.4,1990.9,9.34333487]
[1746716147378,3.0,1991.6,1990.9,4.32063677]
[1746716147379,5.02199965,1991.3,1990.9,4.32063677]
[1746716147734,3.0,1991.4,1990.9,4.31781402]
[1746716147970,0.6918,1991.3,1990.9,4.31781402]
[1746716148180,5.02170934,1991.4,1991.0,5.02249956]
[1746716148381,8.02169343,1991.4,1990.9,4.31781402]
[1746716148590,8.02169343,1991.4,1991.0,5.02246488]
[1746716148788,5.02150498,1991.5,1991.0,5.02240913]
[1746716149073,5.02074829,1991.8,1990.9,4.31781402]
[1746716149281,8.219,1991.9,1991.2,5.02189354]
[1746716149446,8.219,1991.9,1991.4,5.02144424]
[1746716149648,5.02110972,1991.6,1991.2,5.02194468]
[1746716149865,5.0209609,1991.7,1991.2,5.02191532]
[1746716150054,13.24210487,1991.6,1991.2,5.02191532]
[1746716150570,8.221,1991.6,1991.3,5.02173908]
[1746716150776,8.221,1991.6,1991.2,5.02197368]
[1746716150777,13.24213169,1991.6,1991.2,5.02197368]
[1746716150945,5.02144552,1991.5,1991.0,5.77889842]
[1746716151144,3.0,1991.5,1991.0,0.7564]
[1746716151353,3.0,1991.5,1990.8,5.02310628]
[1746716151569,5.02179837,1991.4,1990.7,0.7564]
[1746716151782,5.02179837,1991.4,1991.0,5.0225609]
[1746716151953,5.02145656,1991.5,1991.0,5.0225609]
[1746716152156,5.02161475,1991.4,1991.0,5.02240495]
[1746716152353,8.9128,1991.6,1991.2,5.02187713]
[1746716152543,0.6918,1991.9,1991.3,0.7864]
[1746716152739,7.999,1992.2,1991.3,0.7864]
[1746716152997,0.27933145,1992.1,1991.9,5.02021636]
[1746716153279,0.27933145,1992.1,1992.0,5.02008032]
[1746716153481,7.999,1992.8,1992.4,5.01883123]
[1746716153782,7.999,1992.8,1992.0,5.0198926]
[1746716153783,13.01714381,1992.8,1992.0,5.0198926]
[1746716153957,5.01870126,1992.6,1992.2,5.01939548]
[1746716154281,7.999,1992.7,1992.0,5.01999109]
[1746716154481,7.999,1992.7,1992.0,5.01996669]
[1746716154684,7.999,1992.7,1992.0,0.05019951]
[1746716154886,5.01926871,1992.4,1991.9,0.7565]
[1746716155184,13.01734101,1992.7,1991.6,5.02096197]
[1746716155185,5.02001008,1992.1,1991.6,5.02096197]
[1746716155483,5.02021882,1992.0,1991.5,5.02113438]
[1746716155688,5.02021882,1992.0,1991.6,5.02105519]
[1746716155888,13.01896734,1992.1,1991.6,5.02094054]
[1746716156188,13.01896734,1992.1,1991.6,5.02094295]
[1746716156487,0.6918,1992.0,1991.4,5.02156697]
[1746716156659,7.999,1992.1,1991.7,5.02068384]
[1746716156858,7.999,1992.1,1991.8,5.02041378]
[1746716157072,7.999,1992.3,1991.7,5.02071693]
[1746716157250,7.999,1992.3,1991.6,5.02105132]
[1746716157585,5.02026269,1992.0,1991.5,5.02114361]
[1746716157971,5.01971018,1992.2,1991.6,5.02102338]
[1746716158173,7.999,1992.3,1991.5,5.02122365]
[1746716158372,5.0200482,1992.1,1991.6,5.02095701]
[1746716158571,5.01971369,1992.2,1991.7,5.02079621]
[1746716158778,7.999,1992.3,1991.7,5.02070763]
[1746716158976,5.01977685,1992.2,1991.8,5.02052279]
[1746716159155,7.999,1992.3,1991.9,5.02025538]
[1746716159353,7.999,1992.3,1992.0,5.01983052]
[1746716159554,7.999,1992.3,1992.1,5.01959082]
[1746716159878,7.999,1992.3,1992.1,5.01967621]
[1746716160056,7.999,1992.3,1991.6,0.7507]
[1746716160256,5.0204503,1991.9,1991.4,5.02154177]
[1746716160478,5.02091363,1991.7,1991.3,5.81554555]
[1746716160665,5.02063524,1991.8,1991.4,10.04285081]
[1746716160856,5.71144064,1992.2,1991.3,5.81551104]
[1746716161056,5.02008032,1992.0,1991.1,5.02225486]
[1746716161394,5.02050387,1991.9,1991.4,5.02137083]
[1746716161602,0.55,1992.1,1991.0,0.82431854]
[1746716161603,5.02059432,1991.8,1991.0,0.82431854]
[1746716161767,5.02100157,1991.7,1991.0,0.7741]
[1746716161980,5.40021271,1992.1,1991.0,0.7741]
[1746716162184,5.02130053,1991.6,1991.1,5.02234945]
[1746716162504,7.999,1991.5,1990.7,5.78274908]
[1746716162709,5.02221336,1991.2,1990.7,5.78282257]
[1746716163071,5.02221336,1991.2,1990.8,5.02310208]
[1746716163271,5.02243109,1991.1,1990.7,0.7596]
[1746716163505,5.02225673,1991.2,1990.7,5.78281316]
[1746716163705,5.02201897,1991.3,1990.9,5.02269239]
[1746716163892,5.02212434,1991.2,1990.7,5.78282854]
[1746716164070,5.02212434,1991.2,1990.8,5.0230946]
[1746716164071,5.0223378,1991.2,1990.8,5.0230946]
[1746716164505,5.02169182,1991.4,1990.7,0.7596]
[1746716164671,5.02169182,1991.4,1990.9,5.02272617]
[1746716164869,5.02184956,1991.3,1990.9,5.02272617]
[1746716165209,5.02227338,1991.2,1990.7,5.02323187]
[1746716165384,0.37857006,1991.8,1991.4,5.02135654]
[1746716165581,0.37857006,1991.8,1991.5,5.02130856]
[1746716165780,0.37857006,1991.8,1991.1,5.02232935]
[1746716165781,5.02123375,1991.6,1991.1,5.02216453]
[1746716165972,5.02144556,1991.5,1991.1,5.02230818]
[1746716166173,5.02130571,1991.6,1991.1,5.02230818]
[1746716166394,5.0216535,1991.4,1990.9,0.7983]
[1746716166574,0.55,1991.6,1990.5,8.883743]
[1746716166774,0.55,1991.6,1990.6,0.756]
[1746716166775,5.02195075,1991.3,1990.6,0.756]
[1746716166976,5.71352632,1991.4,1990.6,0.756]
[1746716167181,5.02200904,1991.3,1990.9,5.02270174]
[1746716167467,0.6918,1991.4,1990.8,5.02295913]
[1746716167700,0.6918,1991.4,1990.8,5.02307647]
[1746716167904,5.0224702,1991.1,1990.7,5.02317474]
[1746716168229,0.6918,1991.4,1991.1,5.02233373]
[1746716168381,13.71278606,1991.7,1991.2,5.02191719]
[1746716168711,5.02115923,1991.6,1991.2,5.02191719]
[1746716168912,8.6918,1991.7,1990.8,5.02310628]
[1746716169221,5.01970145,1992.2,1991.8,5.02048725]
[1746716169423,5.01970145,1992.2,1991.4,5.02137121]
[1746716169424,5.02002246,1992.1,1991.6,5.02089117]
[1746716169630,0.6918,1992.4,1991.1,0.7983]
[1746716169631,5.01957634,1992.2,1991.1,0.7983]
[1746716169812,5.01957634,1992.2,1991.4,5.02156829]
[1746716169813,5.0204096,1991.9,1991.4,5.02156829]
[1746716170002,5.02045388,1991.9,1991.5,5.02124948]
[1746716170199,5.02136091,1991.5,1991.1,5.82055803]
[1746716170533,0.6918,1991.8,1991.1,5.82058769]
[1746716170688,0.6918,1991.8,1991.1,0.7983]
[1746716171229,8.0,1992.1,1991.1,0.7983]
[1746716171412,8.6918,1992.1,1991.8,5.02047595]
[1746716171592,8.6918,1992.1,1991.7,5.02068078]
[1746716171925,8.6918,1992.1,1991.8,5.02054503]
[1746716172086,8.0,1992.1,1991.9,5.02020559]
[1746716172286,5.01944263,1992.3,1991.9,5.02020298]
[1746716172523,5.01951309,1992.3,1991.8,5.02039548]
[1746716172699,5.01945184,1992.3,1991.8,5.02038484]
[1746716172894,5.01921406,1992.4,1991.4,0.8319]
[1746716173127,5.01912138,1992.4,1991.6,5.02108857]
[1746716173322,0.6918,1992.5,1992.0,5.01995533]
[1746716173508,5.01907367,1992.4,1991.9,5.02012339]
[1746716173823,5.01948251,1992.3,1991.8,5.02039478]
[1746716173988,5.01948251,1992.3,1991.5,5.02134069]
[1746716173989,0.6918,1992.5,1991.7,5.02083647]
[1746716174189,5.71077946,1992.5,1992.1,5.01968832]
[1746716174391,0.6918,1992.5,1992.2,5.01947857]
[1746716174590,11.32377537,1992.8,1992.4,5.01882855]
[1746716174591,16.72392908,1992.8,1992.4,5.01882855]
[1746716174885,16.72392908,1992.8,1992.3,5.01932439]
[1746716174886,3.70571928,1992.8,1992.3,5.01932439]
[1746716175111,3.32377537,1992.8,1992.7,5.83751685]
[1746716175325,3.32377537,1993.2,1992.7,0.8192]
[1746716175688,8.34092819,1993.2,1992.8,5.01806503]
[1746716175928,3.32377537,1993.2,1992.7,0.8192]
[1746716176126,3.32377537,1993.2,1993.1,5.01730971]
[1746716176299,4.32090799,1993.8,1993.1,1.33073097]
[1746716176501,4.32090799,1993.8,1993.7,5.01579976]
[1746716176910,4.32090799,1993.8,1993.7,5.84799976]
[1746716177432,4.32090799,1993.8,1993.0,5.56740992]
[1746716177617,4.32090799,1993.8,1993.6,5.01603239]
[1746716177818,4.32090799,1993.8,1993.7,5.06595599]
[1746716178125,4.32090799,1993.8,1993.7,6.87485129]
[1746716178324,4.32090799,1993.8,1993.7,6.8246986]
[1746716178830,13.70183844,1994.8,1994.0,5.01494383]
[1746716178831,5.01389098,1994.5,1994.0,5.01494383]
[1746716179028,5.01368082,1994.6,1994.1,5.01478489]
[1746716179230,8.6888,1994.8,1993.9,5.06541446]
[1746716179536,5.01390176,1994.5,1993.9,0.50654145]
[1746716179694,5.0132852,1994.7,1993.7,0.8007]
[1746716179894,3.0,1994.4,1993.7,0.8007]
[1746716180232,7.997,1994.6,1994.1,5.01468194]
[1746716180542,0.6918,1994.8,1993.8,5.01554819]
[1746716180694,8.544,1994.7,1993.7,0.8007]
[1746716180892,5.01466253,1994.2,1993.7,5.81632026]
[1746716181105,5.01529861,1993.9,1993.7,0.8007]
[1746716181424,5.01569697,1993.8,1993.2,5.01694464]
[1746716181611,7.836,1994.1,1993.4,5.01644833]
[1746716181790,7.836,1994.1,1993.5,5.01615891]
[1746716181991,5.01504513,1994.0,1993.2,0.7665]
[1746716182193,7.836,1994.1,1993.2,0.7665]